fUSD/lending_fUSD_20250115
["ID","MTS","AMOUNT","RATE_DAILY","PERIOD"]
[348988317,1736920238949,-503.40159641,9.999e-05,2]
[348988319,1736920238959,-500.0,9.999e-05,2]
[348988321,1736920238968,-500.0,9.999e-05,2]
[348988323,1736920238977,-636.63069971,9.999e-05,2]
[348988325,1736920238987,-500.0,9.999e-05,2]
[348988327,1736920238996,-500.0,9.999e-05,2]
[348988329,1736920239005,-501.28511201,9.999e-05,2]
[348988331,1736920239014,-500.0,9.999e-05,2]
[348988333,1736920239024,-500.0,9.999e-05,2]
[348988335,1736920239033,-500.0,9.999e-05,2]
[348988337,1736920239042,-504.00312126,9.999e-05,2]
[348988339,1736920239052,-500.0,9.999e-05,2]
[348988341,1736920239061,-500.0,9.999e-05,2]
[348988343,1736920239070,-500.0,9.999e-05,2]
[348988345,1736920239080,-503.25574537,9.999e-05,2]
[348988346,1736920239089,-447.35651901,9.999e-05,2]
[348988349,1736920239098,-501.26728836,9.999e-05,2]
[348988350,1736920239107,-501.36894374,9.999e-05,2]
[348988352,1736920239116,-500.0,9.999e-05,2]
[348988354,1736920239125,-500.0,9.999e-05,2]
[348988356,1736920239134,-500.0,9.999e-05,2]
[348988358,1736920239144,-500.0,9.999e-05,2]
[348988360,1736920239153,-500.0,9.999e-05,2]
[348988362,1736920239163,-500.0,9.999e-05,2]
[348988364,1736920239172,-504.18738071,9.999e-05,2]
[348988366,1736920239181,-502.63307898,9.999e-05,2]
[348988368,1736920239191,-500.0,9.999e-05,2]
[348988370,1736920239201,-500.0,9.999e-05,2]
[348988372,1736920239210,-500.0,9.999e-05,2]
[348988374,1736920239220,-364.84186545,9.999e-05,2]
[348988376,1736920239229,-542.46211998,9.999e-05,2]
[348988377,1736920239238,-625.65938697,9.999e-05,2]
[348988379,1736920239248,-504.18658044,9.999e-05,2]
[348988381,1736920239261,-166.83433842,9.999e-05,2]
[348988392,1736920239430,-333.16566158,9.999e-05,2]
[348988393,1736920239439,-502.2809578,9.999e-05,2]
[348988394,1736920239449,-500.0,9.999e-05,2]
[348988395,1736920239459,-502.43523385,9.999e-05,2]
[348988396,1736920239469,-500.94440046,9.999e-05,2]
[348988397,1736920239478,-500.0,9.999e-05,2]
[348988398,1736920239488,-501.48295032,9.999e-05,2]
[348988399,1736920239497,-500.0,9.999e-05,2]
[348988400,1736920239506,-501.12344515,9.999e-05,2]
[348988401,1736920239516,-500.0,9.999e-05,2]
[348988402,1736920239525,-504.90580954,9.999e-05,2]
[348988403,1736920239534,-500.0,9.999e-05,2]
[348988404,1736920239543,-500.0,9.999e-05,2]
[348988405,1736920239552,-500.0,9.999e-05,2]
[348988406,1736920239561,-501.28402208,9.999e-05,2]
[348988407,1736920239571,-500.0,9.999e-05,2]
[348988408,1736920239581,-500.0,9.999e-05,2]
[348988409,1736920239590,-499.93473122,9.999e-05,2]
[348988410,1736920239600,-500.0,9.999e-05,2]
[348988411,1736920239609,-504.53532024,9.999e-05,2]
[348988412,1736920239619,-242.58948819,9.999e-05,2]
[348988413,1736920239629,-503.38153035,9.999e-05,2]
[348988414,1736920239638,-500.0,9.999e-05,2]
[348988415,1736920239647,-500.58341141,9.999e-05,2]
[348988416,1736920239659,-500.0,9.999e-05,2]
[348988417,1736920239668,-502.05872019,9.999e-05,2]
[348988418,1736920239678,-500.0,9.999e-05,2]
[348988419,1736920239687,-500.0,9.999e-05,2]
[348988420,1736920239697,-500.0,9.999e-05,2]
[348988421,1736920239707,-327.37568117,9.999e-05,2]
[348988422,1736920239716,-504.23859232,9.999e-05,2]
[348988423,1736920239725,-509.29102011,9.999e-05,2]
[348988424,1736920239734,-500.8980417,9.999e-05,2]
[348988425,1736920239744,-500.0,9.999e-05,2]
[348988426,1736920239753,-506.45960767,9.999e-05,2]
[348988427,1736920239763,-520.86489836,9.999e-05,2]
[348988428,1736920239773,-501.89317111,9.999e-05,2]
[348988429,1736920239782,-509.83223587,9.999e-05,2]
[348988430,1736920239791,-502.40956051,9.999e-05,2]
[348988431,1736920239800,-500.0,9.999e-05,2]
[348988432,1736920239810,-500.0,9.999e-05,2]
[348988433,1736920239819,-500.0,9.999e-05,2]
[348988434,1736920239828,-500.0,9.999e-05,2]
[348988435,1736920239838,-497.15345469,9.999e-05,2]
[348988436,1736920239847,-500.0,9.999e-05,2]
[348988437,1736920239856,-500.0,9.999e-05,2]
[348988438,1736920239866,-502.95964609,9.999e-05,2]
[348988439,1736920239875,-508.87924666,9.999e-05,2]
[348988440,1736920239884,-500.0,9.999e-05,2]
[348988441,1736920239894,-501.12211627,9.999e-05,2]
[348988442,1736920239903,-403.96298538,9.999e-05,2]
[348988443,1736920239912,-500.0,9.999e-05,2]
[348988444,1736920239921,-502.2410147,9.999e-05,2]
[348988445,1736920239930,-500.0,9.999e-05,2]
[348988446,1736920239940,-486.98688161,9.999e-05,2]
[348988447,1736920239949,-500.0,9.999e-05,2]
[348988448,1736920239958,-500.0,9.999e-05,2]
[348988449,1736920239967,-500.0,9.999e-05,2]
[348988450,1736920239976,-500.0,9.999e-05,2]
[348988451,1736920239986,-500.0,9.999e-05,2]
[348988452,1736920239995,-500.0,9.999e-05,2]
[348988453,1736920240004,-500.83343259,9.999e-05,2]
[348988454,1736920240014,-500.0,9.999e-05,2]
[348988455,1736920240023,-500.0,9.999e-05,2]
[348988456,1736920240032,-509.95272061,9.999e-05,2]
[348988457,1736920240041,-500.0,9.999e-05,2]
[348988458,1736920240050,-627.08728379,9.999e-05,2]
[348988459,1736920240060,-500.0,9.999e-05,2]
[348988460,1736920240069,-500.0,9.999e-05,2]
[348988461,1736920240078,-500.0,9.999e-05,2]
[348988462,1736920240087,-500.0,9.999e-05,2]
[348988463,1736920240097,-500.0,9.999e-05,2]
[348988464,1736920240107,-496.44071302,9.999e-05,2]
[348988465,1736920240116,-500.0,9.999e-05,2]
[348988466,1736920240125,-500.0,9.999e-05,2]
[348988467,1736920240135,-500.0,9.999e-05,2]
[348988468,1736920240144,-500.0,9.999e-05,2]
[348988469,1736920240154,-500.0,9.999e-05,2]
[348988470,1736920240164,-509.67484042,9.999e-05,2]
[348988471,1736920240174,-500.0,9.999e-05,2]
[348988472,1736920240183,-328.24199606,9.999e-05,2]
[348988473,1736920240195,-501.07869268,9.999e-05,2]
[348988474,1736920240204,-502.46134776,9.999e-05,2]
[348988475,1736920240214,-500.0,9.999e-05,2]
[348988476,1736920240224,-492.51389226,9.999e-05,2]
[348988477,1736920240233,-592.49632872,9.999e-05,2]
[348988478,1736920240243,-500.0,9.999e-05,2]
[348988479,1736920240253,-500.0,9.999e-05,2]
[348988480,1736920240266,-500.0,9.999e-05,2]
[348988481,1736920240277,-501.56169197,9.999e-05,2]
[348988482,1736920240287,-504.3778834,9.999e-05,2]
[348988483,1736920240297,-500.0,9.999e-05,2]
[348988484,1736920240307,-500.0,9.999e-05,2]
[348988485,1736920240316,-500.0,9.999e-05,2]
[348988486,1736920240326,-500.0,9.999e-05,2]
[348988487,1736920240336,-501.13616201,9.999e-05,2]
[348988488,1736920240346,-500.0,9.999e-05,2]
[348988489,1736920240355,-500.0,9.999e-05,2]
[348988490,1736920240365,-500.0,9.999e-05,2]
[348988491,1736920240374,-500.0,9.999e-05,2]
[348988492,1736920240384,-500.0,9.999e-05,2]
[348988493,1736920240394,-500.0,9.999e-05,2]
[348988494,1736920240403,-463.25197476,9.999e-05,2]
[348988495,1736920240412,-500.0,9.999e-05,2]
[348988496,1736920240423,-500.0,9.999e-05,2]
[348988497,1736920240432,-828.37,9.999e-05,2]
[348988498,1736920240443,-828.37,9.999e-05,2]
[348988499,1736920240455,-828.37,9.999e-05,2]
[348988500,1736920240465,-828.37,9.999e-05,2]
[348988501,1736920240474,-828.37,9.999e-05,2]
[348988502,1736920240484,-828.37,9.999e-05,2]
[348988503,1736920240494,-828.37,9.999e-05,2]
[348988504,1736920240504,-828.37,9.999e-05,2]
[348988505,1736920240513,-828.37,9.999e-05,2]
[348988506,1736920240522,-500.0,9.999e-05,2]
[348988507,1736920240532,-500.0,9.999e-05,2]
[348988508,1736920240541,-500.0,9.999e-05,2]
[348988509,1736920240550,-500.0,9.999e-05,2]
[348988510,1736920240559,-500.0,9.999e-05,2]
[348988511,1736920240569,-500.0,9.999e-05,2]
[348988512,1736920240578,-500.0,9.999e-05,2]
[348988513,1736920240587,-500.0,9.999e-05,2]
[348988514,1736920240596,-214.58912684,9.999e-05,2]
[348988515,1736920240608,-500.0,9.999e-05,2]
[348988516,1736920240618,-500.0,9.999e-05,2]
[348988517,1736920240627,-500.0,9.999e-05,2]
[348988518,1736920240636,-500.0,9.999e-05,2]
[348988519,1736920240645,-500.0,9.999e-05,2]
[348988520,1736920240655,-500.0,9.999e-05,2]
[348988521,1736920240665,-500.0,9.999e-05,2]
[348988522,1736920240677,-500.0,9.999e-05,2]
[348988523,1736920240687,-500.0,9.999e-05,2]
[348988524,1736920240697,-500.0,9.999e-05,2]
[348988525,1736920240706,-401.83251854,9.999e-05,2]
[348988526,1736920240720,-98.16748146,9.999e-05,2]
[348988527,1736920240729,-500.0,9.999e-05,2]
[348988528,1736920240739,-75.41031786,9.999e-05,2]
[348988529,1736920240751,-424.58968214,9.999e-05,2]
[348988530,1736920240760,-500.0,9.999e-05,2]
[348988531,1736920240770,-68.76018301,9.999e-05,2]
[348988532,1736920240782,-311.184893,9.999e-05,2]
[348988541,1736920240886,-500.0,9.998e-05,2]
[348988543,1736920240897,-128.75279631,9.999e-05,2]
[348988545,1736920240908,-500.0,9.999e-05,2]
[348988547,1736920240920,-500.0,9.999e-05,2]
[348988551,1736920240932,-500.0,9.999e-05,2]
[348988554,1736920240943,-500.0,9.999e-05,2]
[348988556,1736920240954,-500.0,9.999e-05,2]
[348988558,1736920240964,-463.11258258,9.999e-05,2]
[348988561,1736920240980,-48.56917427,9.999e-05,2]
[348988563,1736920240991,-500.0,9.999e-05,2]
[348988565,1736920241001,-500.0,9.999e-05,2]
[348988567,1736920241013,-421.12196443,9.999e-05,2]
[348988570,1736920241027,-78.87803557,9.999e-05,2]
[348988572,1736920241038,-228.8336545,9.999e-05,2]
[348988574,1736920241052,-271.1663455,9.999e-05,2]
[348988576,1736920241063,-500.0,9.999e-05,2]
[348988579,1736920241075,-500.0,9.999e-05,2]
[348988581,1736920241085,-500.0,9.999e-05,2]
[348988583,1736920241096,-500.0,9.999e-05,2]
[348988585,1736920241112,-501.32369233,9.999e-05,2]
[348988587,1736920241123,-500.0,9.999e-05,2]
[348988589,1736920241135,-501.52769232,9.999e-05,2]
[348988592,1736920241145,-225.62939982,9.999e-05,2]
[348988594,1736920241158,-211.78690225,9.999e-05,2]
[348988596,1736920241169,-275.89815298,9.999e-05,2]
[348988598,1736920241183,-224.10184702,9.999e-05,2]
[348988600,1736920241193,-500.0,9.999e-05,2]
[348988603,1736920241204,-371.50443518,9.999e-05,2]
[348988605,1736920241217,-128.49556482,9.999e-05,2]
[348988607,1736920241228,-244.30520842,9.999e-05,2]
[348988609,1736920241241,-263.13254883,9.999e-05,2]
[348988611,1736920241253,-500.0,9.999e-05,2]
[348988614,1736920241267,-500.0,9.999e-05,2]
[348988616,1736920241278,-500.0,9.999e-05,2]
[348988618,1736920241289,-502.38,9.999e-05,2]
[348988620,1736920241302,-500.0,9.999e-05,2]
[348988622,1736920241312,-500.0,9.999e-05,2]
[348988624,1736920241323,-500.0,9.999e-05,2]
[348988626,1736920241335,-204.45617168,9.999e-05,2]
[348988628,1736920241346,-500.0,9.999e-05,2]
[348988631,1736920241358,-540.71,9.999e-05,2]
[348988633,1736920241369,-500.0,9.999e-05,2]
[348988635,1736920241379,-500.0,9.999e-05,2]
[348988637,1736920241390,-500.0,9.999e-05,2]
[348988639,1736920241400,-500.0,9.999e-05,2]
[348988641,1736920241411,-500.0,9.999e-05,2]
[348988643,1736920241423,-500.0,9.999e-05,2]
[348988645,1736920241433,-500.0,9.999e-05,2]
[348988647,1736920241444,-500.0,9.999e-05,2]
[348988650,1736920241455,-500.0,9.999e-05,2]
[348988652,1736920241466,-500.0,9.999e-05,2]
[348988654,1736920241476,-500.0,9.999e-05,2]
[348988656,1736920241488,-500.0,9.999e-05,2]
[348988658,1736920241498,-500.0,9.999e-05,2]
[348988660,1736920241508,-500.0,9.999e-05,2]
[348988662,1736920241519,-500.0,9.999e-05,2]
[348988664,1736920241531,-500.0,9.999e-05,2]
[348988666,1736920241542,-500.0,9.999e-05,2]
[348988669,1736920241554,-500.0,9.999e-05,2]
[348988671,1736920241566,-500.0,9.999e-05,2]
[348988673,1736920241577,-547.78,9.999e-05,2]
[348988675,1736920241588,-500.0,9.999e-05,2]
[348988677,1736920241599,-500.0,9.999e-05,2]
[348988679,1736920241610,-500.0,9.999e-05,2]
[348988681,1736920241620,-500.0,9.999e-05,2]
[348988684,1736920241630,-500.0,9.999e-05,2]
[348988686,1736920241641,-500.0,9.999e-05,2]
[348988687,1736920241650,-500.0,9.999e-05,2]
[348988688,1736920241661,-532.91,9.999e-05,2]
[348988689,1736920241671,-500.0,9.999e-05,2]
[348988690,1736920241681,-500.0,9.999e-05,2]
[348988691,1736920241692,-500.0,9.999e-05,2]
[348988692,1736920241704,-220220.57645458,0.0001,2]
[348988693,1736920241718,-971.24257436,0.0001,2]
[348988836,1736920243396,-500.0,9.899e-05,2]
[348988837,1736920243409,-15768.07293523,0.0001,2]
[348988838,1736920243559,-324.86925467,0.0001,2]
[348988839,1736920243619,-315968.29863253,0.0001,2]
[348988840,1736920243632,-1927.62576622,0.0001,2]
[348988841,1736920243673,-28649.52110028,0.0001,2]
[348988855,1736920246404,-323.16318,9.998e-05,2]
[348988856,1736920246461,-176.83682,9.998e-05,2]
[348988857,1736920246472,-500.0,9.998e-05,2]
[348988858,1736920246482,-260.85552994,0.0001,2]
[348988859,1736920246517,-378.78294716,0.0001,2]
[348988860,1736920246529,-813.5,0.0001,2]
[348988861,1736920246575,-3090.84799268,0.0001,2]
[348988862,1736920246587,-356.20926424,0.0001,2]
[348988863,1736920246634,-129660.99999453,0.0001,2]
[348989293,1736921384414,874.39448072,0.00012,15]
[348989312,1736921431555,-213.04,9.674e-05,2]
[348989314,1736921431565,-287.96,9.684e-05,2]
[348989317,1736921431576,-212.04,9.684e-05,2]
[348989318,1736921431585,-200.0,9.743e-05,2]
[348989319,1736921431793,-500.0,9.8e-05,3]
[348989320,1736921431803,-1000.0,9.9e-05,3]
[348989321,1736921431812,-2500.0,9.9e-05,2]
[348989322,1736921431821,-250.0,9.929e-05,2]
[348989323,1736921431830,-500.0,9.998e-05,2]
[348989324,1736921431839,-500.0,9.998e-05,2]
[348989325,1736921431848,-500.0,9.998e-05,2]
[348989326,1736921431857,-549.91,9.998e-05,2]
[348989327,1736921431867,-607.28,9.998e-05,2]
[348989328,1736921431876,-538.94,9.998e-05,2]
[348989329,1736921431885,-569.61,9.998e-05,2]
[348989330,1736921431895,-500.0,9.998e-05,2]
[348989331,1736921431908,-500.0,9.999e-05,2]
[348989332,1736921431917,-614.61,9.999e-05,2]
[348989333,1736921431926,-500.0,9.999e-05,2]
[348989334,1736921431935,-500.0,9.999e-05,2]
[348989335,1736921431944,-500.0,9.999e-05,2]
[348989336,1736921431953,-220.18128165,9.999e-05,2]
[348989337,1736921431965,-279.81871835,9.999e-05,2]
[348989338,1736921431974,-500.0,9.999e-05,2]
[348989339,1736921431983,-409.54828565,9.999e-05,2]
[348989340,1736921431994,-90.45171435,9.999e-05,2]
[348989341,1736921432003,-504.74408246,9.999e-05,2]
[348989342,1736921432012,-500.0,9.999e-05,2]
[348989343,1736921432021,-557.80973469,9.999e-05,2]
[348989344,1736921432031,-500.0,9.999e-05,2]
[348989345,1736921432040,-500.0,9.999e-05,2]
[348989346,1736921432049,-500.0,9.999e-05,2]
[348989347,1736921432059,-500.0,9.999e-05,2]
[348989349,1736921432069,-606.2187505,9.999e-05,2]
[348989351,1736921432078,-500.0,9.999e-05,2]
[348989353,1736921432086,-500.0,9.999e-05,2]
[348989355,1736921432096,-500.0,9.999e-05,2]
[348989356,1736921432104,-500.0,9.999e-05,2]
[348989358,1736921432114,-500.0,9.999e-05,2]
[348989360,1736921432123,-500.0,9.999e-05,2]
[348989362,1736921432132,-500.0,9.999e-05,2]
[348989364,1736921432141,-500.0,9.999e-05,2]
[348989366,1736921432150,-509.76234719,9.999e-05,2]
[348989368,1736921432159,-500.0,9.999e-05,2]
[348989370,1736921432170,-557.38106266,9.999e-05,2]
[348989372,1736921432179,-183.50942762,9.999e-05,2]
[348989374,1736921432188,-500.0,9.999e-05,2]
[348989376,1736921432197,-500.0,9.999e-05,2]
[348989378,1736921432205,-500.0,9.999e-05,2]
[348989380,1736921432215,-500.0,9.999e-05,2]
[348989382,1736921432225,-500.0,9.999e-05,2]
[348989384,1736921432234,-500.0,9.999e-05,2]
[348989386,1736921432243,-500.0,9.999e-05,2]
[348989388,1736921432252,-500.0,9.999e-05,2]
[348989390,1736921432261,-500.0,9.999e-05,2]
[348989392,1736921432271,-500.0,9.999e-05,2]
[348989394,1736921432280,-500.0,9.999e-05,2]
[348989396,1736921432289,-500.0,9.999e-05,2]
[348989398,1736921432298,-500.0,9.999e-05,2]
[348989400,1736921432307,-337.228365,9.999e-05,2]
[348989402,1736921432317,-503.70157187,9.999e-05,2]
[348989404,1736921432326,-500.0,9.999e-05,2]
[348989406,1736921432335,-500.0,9.999e-05,2]
[348989408,1736921432344,-500.0,9.999e-05,2]
[348989410,1736921432353,-607.51839087,9.999e-05,2]
[348989412,1736921432362,-500.0,9.999e-05,2]
[348989413,1736921432371,-500.0,9.999e-05,2]
[348989415,1736921432380,-500.0,9.999e-05,2]
[348989417,1736921432389,-500.0,9.999e-05,2]
[348989419,1736921432398,-500.0,9.999e-05,2]
[348989422,1736921432408,-500.0,9.999e-05,2]
[348989423,1736921432417,-507.70577977,9.999e-05,2]
[348989425,1736921432426,-275.70625215,9.999e-05,2]
[348989428,1736921432435,-500.0,9.999e-05,2]
[348989429,1736921432445,-500.0,9.999e-05,2]
[348989431,1736921432454,-500.0,9.999e-05,2]
[348989433,1736921432463,-500.0,9.999e-05,2]
[348989435,1736921432473,-500.0,9.999e-05,2]
[348989437,1736921432482,-500.0,9.999e-05,2]
[348989439,1736921432491,-500.0,9.999e-05,2]
[348989441,1736921432501,-500.0,9.999e-05,2]
[348989443,1736921432510,-500.0,9.999e-05,2]
[348989445,1736921432519,-503.09528361,9.999e-05,2]
[348989447,1736921432529,-500.0,9.999e-05,2]
[348989449,1736921432538,-500.0,9.999e-05,2]
[348989451,1736921432547,-500.0,9.999e-05,2]
[348989453,1736921432557,-500.0,9.999e-05,2]
[348989455,1736921432566,-500.0,9.999e-05,2]
[348989457,1736921432575,-500.0,9.999e-05,2]
[348989459,1736921432584,-500.0,9.999e-05,2]
[348989462,1736921432594,-500.0,9.999e-05,2]
[348989465,1736921432603,-500.0,9.999e-05,2]
[348989468,1736921432612,-507.14415896,9.999e-05,2]
[348989471,1736921432622,-503.43677336,9.999e-05,2]
[348989474,1736921432632,-500.0,9.999e-05,2]
[348989477,1736921432642,-500.0,9.999e-05,2]
[348989480,1736921432653,-500.0,9.999e-05,2]
[348989482,1736921432662,-500.0,9.999e-05,2]
[348989484,1736921432671,-370.462159,9.999e-05,2]
[348989486,1736921432682,-505.33654036,9.999e-05,2]
[348989489,1736921432691,-503.63050271,9.999e-05,2]
[348989493,1736921432701,-500.0,9.999e-05,2]
[348989496,1736921432711,-500.0,9.999e-05,2]
[348989499,1736921432721,-500.0,9.999e-05,2]
[348989502,1736921432731,-500.0,9.999e-05,2]
[348989505,1736921432741,-500.0,9.999e-05,2]
[348989508,1736921432749,-500.0,9.999e-05,2]
[348989511,1736921432759,-500.0,9.999e-05,2]
[348989514,1736921432767,-500.0,9.999e-05,2]
[348989517,1736921432776,-500.0,9.999e-05,2]
[348989520,1736921432785,-502.18398573,9.999e-05,2]
[348989523,1736921432794,-500.0,9.999e-05,2]
[348989526,1736921432802,-500.0,9.999e-05,2]
[348989529,1736921432811,-505.27508462,9.999e-05,2]
[348989532,1736921432820,-500.0,9.999e-05,2]
[348989535,1736921432830,-500.0,9.999e-05,2]
[348989537,1736921432839,-500.0,9.999e-05,2]
[348989540,1736921432848,-500.0,9.999e-05,2]
[348989543,1736921432856,-500.0,9.999e-05,2]
[348989546,1736921432867,-500.0,9.999e-05,2]
[348989549,1736921432876,-500.0,9.999e-05,2]
[348989552,1736921432886,-500.0,9.999e-05,2]
[348989555,1736921432895,-500.0,9.999e-05,2]
[348989557,1736921432905,-500.0,9.999e-05,2]
[348989559,1736921432914,-500.0,9.999e-05,2]
[348989561,1736921432923,-500.0,9.999e-05,2]
[348989563,1736921432932,-500.0,9.999e-05,2]
[348989565,1736921432942,-500.0,9.999e-05,2]
[348989567,1736921432951,-500.0,9.999e-05,2]
[348989569,1736921432962,-504.13709421,9.999e-05,2]
[348989571,1736921432971,-500.0,9.999e-05,2]
[348989573,1736921432980,-500.0,9.999e-05,2]
[348989575,1736921432988,-500.0,9.999e-05,2]
[348989577,1736921432996,-500.0,9.999e-05,2]
[348989579,1736921433005,-500.0,9.999e-05,2]
[348989581,1736921433014,-500.0,9.999e-05,2]
[348989583,1736921433023,-508.98080978,9.999e-05,2]
[348989585,1736921433033,-500.0,9.999e-05,2]
[348989587,1736921433042,-500.0,9.999e-05,2]
[348989589,1736921433052,-500.0,9.999e-05,2]
[348989591,1736921433061,-500.0,9.999e-05,2]
[348989593,1736921433070,-500.0,9.999e-05,2]
[348989595,1736921433080,-506.20743645,9.999e-05,2]
[348989597,1736921433089,-500.0,9.999e-05,2]
[348989599,1736921433098,-501.21000362,9.999e-05,2]
[348989601,1736921433108,-500.0,9.999e-05,2]
[348989603,1736921433118,-500.0,9.999e-05,2]
[348989605,1736921433127,-500.0,9.999e-05,2]
[348989607,1736921433137,-500.0,9.999e-05,2]
[348989609,1736921433146,-500.0,9.999e-05,2]
[348989610,1736921433156,-500.0,9.999e-05,2]
[348989613,1736921433167,-500.0,9.999e-05,2]
[348989615,1736921433176,-504.04824615,9.999e-05,2]
[348989617,1736921433185,-500.0,9.999e-05,2]
[348989619,1736921433194,-500.0,9.999e-05,2]
[348989620,1736921433204,-500.0,9.999e-05,2]
[348989622,1736921433213,-508.80493973,9.999e-05,2]
[348989624,1736921433223,-500.0,9.999e-05,2]
[348989627,1736921433232,-503.70640026,9.999e-05,2]
[348989628,1736921433242,-503.35422246,9.999e-05,2]
[348989631,1736921433252,-500.0,9.999e-05,2]
[348989632,1736921433261,-500.0,9.999e-05,2]
[348989634,1736921433271,-500.0,9.999e-05,2]
[348989636,1736921433281,-500.0,9.999e-05,2]
[348989638,1736921433290,-506.86231546,9.999e-05,2]
[348989640,1736921433301,-500.0,9.999e-05,2]
[348989641,1736921433310,-503.4326345,9.999e-05,2]
[348989644,1736921433320,-500.0,9.999e-05,2]
[348989645,1736921433329,-500.0,9.999e-05,2]
[348989647,1736921433338,-499.99061772,9.999e-05,2]
[348989649,1736921433347,-500.0,9.999e-05,2]
[348989651,1736921433357,-500.0,9.999e-05,2]
[348989653,1736921433367,-500.0,9.999e-05,2]
[348989655,1736921433376,-301.06171813,9.999e-05,2]
[348989673,1736921433542,-198.93828187,9.999e-05,2]
[348989674,1736921433552,-500.0,9.999e-05,2]
[348989676,1736921433561,-506.95727576,9.999e-05,2]
[348989679,1736921433571,-501.63259751,9.999e-05,2]
[348989680,1736921433580,-500.0,9.999e-05,2]
[348989683,1736921433590,-500.0,9.999e-05,2]
[348989685,1736921433600,-500.0,9.999e-05,2]
[348989686,1736921433609,-500.0,9.999e-05,2]
[348989688,1736921433618,-500.0,9.999e-05,2]
[348989690,1736921433628,-504.68628447,9.999e-05,2]
[348989692,1736921433638,-500.0,9.999e-05,2]
[348989694,1736921433649,-500.0,9.999e-05,2]
[348989696,1736921433661,-500.0,9.999e-05,2]
[348989698,1736921433671,-500.0,9.999e-05,2]
[348989700,1736921433680,-500.0,9.999e-05,2]
[348989702,1736921433689,-500.0,9.999e-05,2]
[348989704,1736921433699,-506.56644472,9.999e-05,2]
[348989706,1736921433708,-500.0,9.999e-05,2]
[348989708,1736921433717,-500.0,9.999e-05,2]
[348989710,1736921433727,-504.75280833,9.999e-05,2]
[348989712,1736921433736,-508.3177765,9.999e-05,2]
[348989714,1736921433745,-500.0,9.999e-05,2]
[348989716,1736921433755,-500.0,9.999e-05,2]
[348989718,1736921433765,-500.0,9.999e-05,2]
[348989719,1736921433775,-500.0,9.999e-05,2]
[348989721,1736921433784,-500.0,9.999e-05,2]
[348989723,1736921433793,-500.0,9.999e-05,2]
[348989725,1736921433803,-500.0,9.999e-05,2]
[348989727,1736921433812,-566.93032018,9.999e-05,2]
[348989730,1736921433825,-505.18489693,9.999e-05,2]
[348989732,1736921433835,-500.0,9.999e-05,2]
[348989734,1736921433847,-500.0,9.999e-05,2]
[348989736,1736921433859,-500.0,9.999e-05,2]
[348989738,1736921433872,-500.0,9.999e-05,2]
[348989741,1736921433883,-500.0,9.999e-05,2]
[348989743,1736921433895,-500.0,9.999e-05,2]
[348989745,1736921433906,-504.66853103,9.999e-05,2]
[348989747,1736921433916,-500.0,9.999e-05,2]
[348989749,1736921433926,-500.0,9.999e-05,2]
[348989751,1736921433936,-500.0,9.999e-05,2]
[348989753,1736921433947,-504.47365892,9.999e-05,2]
[348989755,1736921433957,-500.0,9.999e-05,2]
[348989757,1736921433968,-505.64275319,9.999e-05,2]
[348989759,1736921433980,-504.4430791,9.999e-05,2]
[348989762,1736921433991,-500.0,9.999e-05,2]
[348989764,1736921434001,-312.74599313,9.999e-05,2]
[348989766,1736921434012,-500.0,9.999e-05,2]
[348989768,1736921434022,-500.0,9.999e-05,2]
[348989770,1736921434033,-500.0,9.999e-05,2]
[348989772,1736921434044,-596.90473877,9.999e-05,2]
[348989774,1736921434055,-572.28,9.999e-05,2]
[348989776,1736921434067,-572.28,9.999e-05,2]
[348989779,1736921434078,-572.28,9.999e-05,2]
[348989781,1736921434088,-572.28,9.999e-05,2]
[348989783,1736921434098,-572.28,9.999e-05,2]
[348989785,1736921434108,-500.0,9.999e-05,2]
[348989787,1736921434118,-572.28,9.999e-05,2]
[348989789,1736921434128,-564.68852955,9.999e-05,2]
[348989791,1736921434138,-500.0,9.999e-05,2]
[348989793,1736921434149,-500.0,9.999e-05,2]
[348989795,1736921434159,-500.0,9.999e-05,2]